fUSD/lending_fUSD_20260403
["ID","MTS","AMOUNT","RATE_DAILY","PERIOD"]
[419326908,1775177446751,-3480.19606626,0.00014992,2]
[419326909,1775177446760,-3029.09480024,0.00014992,2]
[419326910,1775177446770,-300.0,0.00015,2]
[419326911,1775177446780,-2456.0,0.00015055,2]
[419326912,1775177446790,-2456.0,0.00015061,2]
[419326914,1775177446800,-2456.0,0.00015063,2]
[419326916,1775177446809,-500.0,0.00015082,2]
[419326917,1775177446819,-500.0,0.00015082,2]
[419326918,1775177446829,-500.0,0.00015082,2]
[419326919,1775177446839,-500.0,0.00015082,2]
[419326920,1775177446849,-500.0,0.00015082,2]
[419326921,1775177446861,-628.69020228,0.00015082,2]
[419326922,1775177446871,-563.23,0.00015092,2]
[419326923,1775177446882,-1180.8341278,0.00015175,2]
[419326924,1775177446893,-5278.8054082,0.00015175,2]
[419326925,1775177446902,-9158.5040278,0.00015175,2]
[419326926,1775177446912,-13978.1462137,0.00015175,2]
[419326927,1775177446921,-420.0,0.00015182,2]
[419326928,1775177446930,-2456.0,0.00015207,2]
[419326929,1775177446940,-157.0,0.00015219,5]
[419326930,1775177446950,-3480.19606626,0.00015219,2]
[419326931,1775177446960,-3029.09480024,0.00015219,2]
[419326932,1775177446970,-231.0,0.00015219,5]
[419326933,1775177446980,-1680.0,0.00015242,2]
[419326934,1775177446989,-2456.0,0.00015301,2]
[419326935,1775177446999,-359.0,0.00015355,2]
[419326936,1775177447008,-2456.0,0.00015357,2]
[419326937,1775177447018,-2456.0,0.00015361,2]
[419326938,1775177447028,-186.69,0.00015396,2]
[419326939,1775177447038,-359.0,0.000154,2]
[419326940,1775177447047,-3480.19606626,0.00015446,2]
[419326941,1775177447056,-3029.09480024,0.00015446,2]
[419326942,1775177447066,-2456.0,0.00015468,2]
[419326943,1775177447075,-166.66,0.00015468,2]
[419326944,1775177447084,-160.0,0.00015471,2]
[419326945,1775177447095,-359.0,0.00015474,2]
[419326946,1775177447105,-664.3,0.00015507,2]
[419326947,1775177447114,-168.0,0.00015515,2]
[419326948,1775177447123,-242.0,0.00015567,5]
[419326949,1775177447132,-2456.0,0.00015595,2]
[419326950,1775177447142,-180.564,0.000156,7]
[419326951,1775177447151,-2456.0,0.00015615,2]
[419326952,1775177447161,-1346.0,0.00015622,2]
[419326953,1775177447170,-3605.685,0.00015622,2]
[419326954,1775177447180,-1046.0,0.00015622,2]
[419326955,1775177447189,-163.844,0.00015622,2]
[419326956,1775177447215,-1263.0,0.00015622,2]
[419326957,1775177447224,-276.311,0.00015622,2]
[419326958,1775177447234,-925.0,0.00015622,2]
[419326959,1775177447243,-1217.0,0.00015622,2]
[419326960,1775177447252,-6016.0,0.00015622,2]
[419326961,1775177447261,-2469.0,0.00015622,2]
[419326962,1775177447271,-168.0,0.00015644,2]
[419326963,1775177447280,-3480.19606626,0.00015673,2]
[419326964,1775177447290,-3029.09480024,0.00015673,2]
[419326965,1775177447299,-173.3337705,0.0001568,2]
[419326966,1775177447308,-554.0,0.00015775,3]
[419326967,1775177447318,-563.23,0.00015778,2]
[419326968,1775177447327,-393.00963669,0.00015788,2]
[419326969,1775177447336,-25000.0,0.00015794,3]
[419326970,1775177447346,-25000.0,0.00015803,3]
[419326971,1775177447355,-25000.0,0.00015812,3]
[419326972,1775177447364,-67726.49863211,0.0001584,2]
[419326973,1775177447374,-151.0,0.0001584,2]
[419326974,1775177447383,-151.0,0.0001584,2]
[419326975,1775177447392,-2000.0,0.00015863,2]
[419326976,1775177447401,-200.0,0.00015872,2]
[419326977,1775177447411,-359.0,0.00015881,2]
[419326978,1775177447420,-684.19,0.0001589,2]
[419326979,1775177447430,-664.3,0.00015895,2]
[419326980,1775177447439,-502.0,0.00015898,4]
[419326981,1775177447448,-3480.19606626,0.000159,2]
[419326982,1775177447458,-3029.09480024,0.000159,2]
[419326983,1775177447467,-202.05112558,0.000159,2]
[419326984,1775177447476,-311.68523986,0.000159,2]
[419326985,1775177447486,-385.3183636,0.000159,2]
[419326986,1775177447495,-359.0,0.00015902,2]
[419326987,1775177447504,-166.66,0.00015962,2]
[419326988,1775177447514,-1600.0,0.00015965,2]
[419326989,1775177447523,-1000.0,0.0001597,2]
[419326990,1775177447533,-151.0,0.0001597,2]
[419326991,1775177447542,-359.66331739,0.00015973,2]
[419326992,1775177447551,-225.42759078,0.00015973,2]
[419326993,1775177447561,-109185.20038161,0.0001599,2]
[419326994,1775177447657,-8987.50519752,0.0001599,2]
[419326995,1775177447683,-800.00006697,0.0001599,2]
[419326996,1775177473137,154.68,7.043e-05,2]
[419326999,1775177527380,499.0,7.043e-05,3]
[419327000,1775177585712,474.0,7.043e-05,3]
[419327001,1775177647898,450.0,7.043e-05,3]
[419327002,1775177707446,157.0,7.043e-05,3]
[419327003,1775177711446,428.0,7.043e-05,3]
[419327004,1775177767166,406.0,7.043e-05,3]
[419327005,1775177831704,386.0,7.043e-05,3]
[419327007,1775177887720,367.0,7.043e-05,3]
[419327008,1775177948230,348.0,7.043e-05,3]
[419327009,1775178006181,331.0,7.043e-05,3]
[419327010,1775178008797,157.0,7.043e-05,3]
[419327012,1775178129499,315.0,7.043e-05,3]
[419327013,1775178187669,299.0,7.043e-05,3]
[419327014,1775178246833,284.0,7.043e-05,3]
[419327015,1775178310977,157.0,7.043e-05,3]
[419327016,1775178311072,270.0,7.043e-05,3]
[419327017,1775178367845,256.0,7.043e-05,3]
[419327018,1775178425862,243.0,7.043e-05,3]
[419327020,1775178487873,231.0,7.043e-05,3]
[419327029,1775178545709,220.0,7.043e-05,3]
[419327030,1775178606418,209.0,7.043e-05,3]
[419327031,1775178606452,158.0,7.043e-05,3]
[419327035,1775178632623,-209.0,9.13e-05,3]
[419327036,1775178632633,-209.0,0.00011218,3]
[419327037,1775178632642,-209.0,0.00013305,3]
[419327038,1775178632651,-814.215,0.0001358,2]
[419327039,1775178632661,-166.66,0.00013699,2]
[419327040,1775178632670,-1200.0,0.00013756,2]
[419327041,1775178632679,-44446.8578,0.00013757,2]
[419327042,1775178632689,-277.15167504,0.00013765,2]
[419327043,1775178632698,-254.83,0.00013775,2]
[419327044,1775178632708,-1852.42,0.00013775,2]
[419327046,1775178632718,-151.0,0.00013849,2]
[419327047,1775178632727,-151.0,0.00013849,2]
[419327048,1775178632736,-151.0,0.00013849,2]
[419327049,1775178632745,-151.0,0.00013849,2]
[419327050,1775178632756,-151.0,0.00013849,2]
[419327051,1775178632767,-151.0,0.00013849,2]
[419327052,1775178632776,-151.0,0.00013849,2]
[419327053,1775178632786,-151.0,0.00013849,2]
[419327054,1775178632796,-151.0,0.00013849,2]
[419327055,1775178632805,-151.0,0.00013849,2]
[419327056,1775178632815,-151.0,0.00013849,2]
[419327057,1775178632825,-151.0,0.00013849,2]
[419327059,1775178632835,-151.0,0.00013849,2]
[419327060,1775178632844,-151.0,0.00013849,2]
[419327061,1775178632855,-151.0,0.00013849,2]
[419327062,1775178632867,-151.0,0.00013849,2]
[419327063,1775178632877,-151.0,0.00013849,2]
[419327064,1775178632887,-151.0,0.00013849,2]
[419327065,1775178632897,-151.0,0.00013849,2]
[419327066,1775178632908,-151.0,0.00013849,2]
[419327067,1775178632919,-166.66,0.00013852,2]
[419327068,1775178632929,-205.16,0.00013865,2]
[419327069,1775178632940,-500.0,0.00013873,2]
[419327070,1775178632950,-150.0,0.000139,2]
[419327071,1775178632959,-500.0,0.000139,2]
[419327072,1775178632968,-500.0,0.000139,2]
[419327073,1775178632978,-500.0,0.000139,2]
[419327074,1775178632991,-500.14404481,0.000139,2]
[419327075,1775178633000,-347.75300802,0.000139,2]
[419327076,1775178633010,-500.0,0.000139,2]
[419327077,1775178633019,-500.0,0.000139,2]
[419327078,1775178633028,-503.78850108,0.000139,2]
[419327079,1775178633038,-500.0,0.000139,2]
[419327080,1775178633047,-500.51190389,0.000139,2]
[419327081,1775178633057,-500.0,0.000139,2]
[419327082,1775178633066,-277.15167502,0.00014002,2]
[419327083,1775178633075,-166.66,0.00014005,2]
[419327084,1775178633084,-706.19,0.00014006,2]
[419327085,1775178633093,-150.0,0.0001406,2]
[419327086,1775178633103,-669.28,0.0001406,2]
[419327087,1775178633112,-837.25,0.0001406,2]
[419327088,1775178633121,-165.94,0.00014078,2]
[419327089,1775178633130,-730.22,0.00014085,2]
[419327090,1775178633140,-166.66,0.00014158,2]
[419327091,1775178633149,-277.15167502,0.00014239,2]
[419327092,1775178633158,-166.66,0.00014311,2]
[419327093,1775178633168,-166.66,0.00014464,2]
[419327094,1775178633177,-277.15167502,0.00014477,2]
[419327095,1775178633186,-9999.99,0.00014504,2]
[419327096,1775178633195,-167.04,0.00014504,2]
[419327097,1775178633205,-4491.84,0.00014504,2]
[419327098,1775178633214,-150.99,0.00014504,2]
[419327099,1775178633223,-150.99,0.00014504,2]
[419327100,1775178633233,-726.33,0.00014504,2]
[419327101,1775178633242,-5373.21,0.00014504,2]
[419327102,1775178633251,-277.15167502,0.00014714,2]
[419327103,1775178633261,-350.77201975,0.00014833,2]
[419327104,1775178633270,-277.15167502,0.00014951,2]
[419327105,1775178633280,-165.94,0.00014958,2]
[419327106,1775178633290,-451.07387187,0.00015016,2]
[419327107,1775178633300,-455.85,0.00015016,2]
[419327108,1775178633312,-180.5118,0.000151,7]
[419327109,1775178633322,-1680.0,0.00015132,2]
[419327110,1775178633331,-277.15167502,0.00015188,2]
[419327111,1775178633340,-1100.74221654,0.0001521,2]
[419327112,1775178633350,-350.0,0.00015367,2]
[419327113,1775178633360,-396.39554911,0.00015373,2]
[419327114,1775178633369,-500.0,0.00015373,2]
[419327115,1775178633379,-500.0,0.00015373,2]
[419327116,1775178633388,-261.17324766,0.00015373,2]
[419327117,1775178633398,-500.0,0.00015373,2]
[419327118,1775178633407,-209.0,0.00015392,3]
[419327119,1775178633417,-277.15167502,0.00015426,2]
[419327120,1775178633426,-277.15167502,0.00015663,2]
[419327121,1775178633436,-173.3337705,0.0001568,2]
[419327122,1775178633445,-1000.0,0.00015718,2]
[419327123,1775178633454,-1000.0,0.0001573,2]
[419327124,1775178633463,-591.92174838,0.00015772,2]
[419327125,1775178633472,-1785.0,0.0001578,2]
[419327126,1775178633482,-1000.0,0.00015803,2]
[419327127,1775178633491,-272.0,0.00015816,2]
[419327128,1775178633501,-217.0,0.00015816,2]
[419327129,1775178633511,-200.0,0.00015816,2]
[419327130,1775178633520,-250.0,0.00015816,2]
[419327131,1775178633529,-224.653,0.00015816,2]
[419327132,1775178633538,-250.0,0.00015816,2]
[419327133,1775178633548,-238.05,0.00015816,2]
[419327134,1775178633557,-250.0,0.00015816,2]
[419327135,1775178633567,-250.0,0.00015816,2]
[419327136,1775178633576,-162.763,0.00015816,2]
[419327137,1775178633585,-629.949,0.00015816,2]
[419327138,1775178633595,-1046.0,0.00015816,2]
[419327139,1775178633604,-1346.0,0.00015816,2]
[419327140,1775178633615,-150.0,0.00015816,2]
[419327141,1775178633624,-1263.0,0.00015816,2]
[419327142,1775178633634,-925.0,0.00015816,2]
[419327143,1775178633644,-1217.0,0.00015816,2]
[419327144,1775178633654,-370.43315216,0.00015816,2]
[419327145,1775178633785,-696.09491183,0.00015816,2]
[419327146,1775178633875,-827.70380581,0.00015816,2]
[419327147,1775178633887,-2000.0,0.00015816,2]
[419327239,1775178641102,-151.36,0.00013386,2]
[419327240,1775178641112,-173.3337705,0.0001568,2]
[419327241,1775178641122,-1753.48028735,0.00015816,2]
[419327242,1775178641161,-368.28784285,0.00015816,2]
[419327243,1775178641170,-2469.0,0.00015816,2]
[419327244,1775178641180,-3768.0,0.00015816,2]
[419327245,1775178641190,-1000.0,0.00015817,2]
[419327246,1775178641199,-1000.0,0.00015829,2]
[419327247,1775178641209,-165.94,0.00015838,2]
[419327248,1775178641218,-1000.0,0.00015844,2]
[419327249,1775178641227,-1000.0,0.00015844,2]
[419327250,1775178641236,-150.0,0.00015861,2]
[419327251,1775178641246,-153.0,0.00015863,5]
[419327252,1775178641255,-1000.0,0.00015864,2]
[419327253,1775178641265,-1000.0,0.00015866,2]
[419327254,1775178641275,-49117.5576437,0.0001587,2]
[419327255,1775178641284,-500.0,0.00015873,2]
[419327256,1775178641294,-500.0,0.00015873,2]
[419327257,1775178641304,-500.0,0.00015873,2]
[419327258,1775178641313,-274.57240922,0.00015873,2]
[419327259,1775178641322,-500.0,0.00015873,2]
[419327260,1775178641331,-511.11240638,0.00015873,2]
[419327261,1775178641341,-60592.52969785,0.0001589,2]
[419327262,1775178641353,-14269.12965518,0.0001589,2]
[419327268,1775178643960,-499.94661526,0.0001589,2]
[419327269,1775178644068,-3339.25,0.0001589,2]
[419327273,1775178646460,-708.77,0.0001589,2]
[419327319,1775179831585,-338.0,0.0001,2]
[419327322,1775179831596,-338.0,0.00010393,2]
[419327324,1775179831605,-43.62920142,0.00010912,2]
[419327327,1775179831617,-296.16528349,0.00010912,2]
[419327329,1775179831627,-477.48607174,0.0001166,2]
[419327331,1775179831638,-901.23418243,0.0001166,2]
[419327333,1775179831650,-1389.08734021,0.0001166,2]
[419327337,1775179831791,-449.06422201,0.0001166,2]
[419327338,1775179831804,-1369.54177972,0.0001166,2]
[419327339,1775179831814,-190.69194302,0.00011984,2]
[419327340,1775179831825,-300.0,0.00012084,2]
[419327341,1775179831835,-1200.0,0.00012084,2]
[419327342,1775179831845,-2523.99,0.00012085,2]
[419327343,1775179831855,-150.0,0.00012085,2]
[419327344,1775179831865,-150.0,0.00012085,2]
[419327345,1775179831876,-2000.0,0.00012495,2]
[419327346,1775179831885,-190.691943,0.00012817,2]
[419327347,1775179831895,-150.0,0.000129,2]
[419327348,1775179831906,-202.16654467,0.00012929,2]
[419327349,1775179831916,-250.0,0.00013,2]
[419327350,1775179831926,-502.0,0.00013111,2]
[419327351,1775179831936,-500.0,0.00013123,2]
[419327352,1775179831945,-266.0,0.0001313,2]
[419327353,1775179831956,-300.0,0.00013264,2]
[419327354,1775179831965,-1680.0,0.00013292,2]
[419327355,1775179831975,-651.372,0.00013482,2]
[419327356,1775179831985,-1300.0,0.00013545,2]
[419327357,1775179831994,-150.0,0.00013556,2]
[419327358,1775179832004,-143905.33075754,0.00013557,2]
[419327359,1775179832017,-4937.9923059,0.00013557,2]
[419327360,1775179832028,-386.50310663,0.00013557,2]
[419327361,1775179832040,-2053.0,0.00013557,2]
[419327362,1775179832052,-895.41,0.00013557,2]
[419327363,1775179832064,-2379.26744176,0.00013557,2]
[419327364,1775179832076,-133874.14277632,0.00013557,2]
[419327365,1775179832088,-3280.89697242,0.00013557,2]
[419327366,1775179832099,-9757.62375413,0.00013557,2]
[419327367,1775179832110,-10131.93031271,0.00013557,2]
[419327368,1775179832122,-596.66074998,0.00013557,2]
[419327369,1775179832213,-686.37800408,0.00013557,2]
[419327370,1775179832225,-445.24021381,0.00013557,2]
[419327623,1775179838632,-460.0,0.000106,5]
[419327624,1775179838642,-68606.07080472,0.00013557,2]
[419327625,1775179838652,-500.0,0.00013573,2]
[419327626,1775179838661,-503.20924096,0.00013624,3]
[419327627,1775179838671,-190.691943,0.00013649,2]
[419327628,1775179838680,-1626.6035,0.00013657,2]
[419327629,1775179838690,-4148.7966,0.00013657,2]
[419327630,1775179838699,-2500.0,0.00013657,2]
[419327631,1775179838709,-190.11268465,0.00013673,2]
[419327632,1775179838718,-200.0,0.00013749,2]
[419327633,1775179838727,-500.0,0.00013749,2]
[419327634,1775179838737,-500.0,0.00013749,2]
[419327635,1775179838746,-500.0,0.00013749,2]
[419327636,1775179838755,-500.0,0.00013749,2]
[419327637,1775179838765,-500.0,0.00013749,2]
[419327638,1775179838774,-500.0,0.00013749,2]
[419327639,1775179838783,-500.0,0.00013749,2]
[419327640,1775179838792,-500.0,0.00013749,2]
[419327641,1775179838802,-500.0,0.00013749,2]
[419327642,1775179838811,-500.0,0.00013749,2]
[419327643,1775179838820,-151.0,0.00013749,2]
[419327644,1775179838830,-500.0,0.00013749,2]
[419327645,1775179838839,-151.0,0.00013749,2]
[419327646,1775179838849,-151.0,0.00013749,2]
[419327647,1775179838858,-500.0,0.00013749,2]
[419327648,1775179838868,-151.0,0.00013749,2]
[419327649,1775179838878,-151.0,0.00013749,2]
[419327650,1775179838887,-151.0,0.00013749,2]
[419327651,1775179838897,-151.0,0.00013749,2]
[419327652,1775179838905,-500.0,0.00013749,2]
[419327653,1775179838915,-151.0,0.00013749,2]
[419327654,1775179838924,-151.0,0.00013749,2]
[419327655,1775179838934,-500.0,0.00013749,2]
[419327656,1775179838943,-151.0,0.00013749,2]
[419327657,1775179838952,-500.0,0.00013749,2]
[419327658,1775179838961,-151.0,0.00013749,2]
[419327659,1775179838970,-500.0,0.00013749,2]
[419327660,1775179838980,-151.0,0.00013749,2]
[419327661,1775179838989,-500.0,0.00013749,2]
[419327662,1775179838998,-151.0,0.00013749,2]
[419327663,1775179839007,-500.0,0.00013749,2]
[419327664,1775179839016,-151.0,0.00013749,2]
[419327665,1775179839025,-500.0,0.00013749,2]
[419327666,1775179839034,-151.0,0.00013749,2]
[419327667,1775179839043,-151.0,0.00013749,2]
[419327668,1775179839052,-500.0,0.00013749,2]
[419327669,1775179839062,-500.0,0.00013749,2]
[419327670,1775179839072,-500.0,0.00013749,2]
[419327671,1775179839083,-500.0,0.00013749,2]
[419327672,1775179839093,-1386.78395259,0.00013749,2]
[419327673,1775179839103,-500.0,0.00013756,2]
[419327674,1775179839112,-516.17,0.00013756,2]
[419327675,1775179839123,-400.0,0.000138,5]
[419327676,1775179839135,-250.0,0.00013839,2]
[419327677,1775179839144,-500.0,0.00013875,2]
[419327678,1775179839154,-500.0,0.00013875,2]
[419327679,1775179839163,-900.0,0.000139,5]
[419327680,1775179839173,-943.49332848,0.00013918,2]
[419327681,1775179839182,-552.14391862,0.0001403,2]
[419327682,1775179839192,-516.17,0.0001403,2]
[419327683,1775179839201,-2000.0,0.00014057,2]
[419327684,1775179839211,-180.4831,0.000142,7]
[419327685,1775179839221,-200.0,0.00014297,2]
[419327686,1775179839230,-1438.09495884,0.00014297,2]
[419327687,1775179839240,-516.17,0.00014304,2]
[419327688,1775179839249,-1995.20112838,0.00014478,2]
[419327689,1775179839258,-150.99,0.00014504,2]
[419327690,1775179839269,-6798.04,0.00014504,2]
[419327691,1775179839278,-9999.99,0.00014504,2]
[419327692,1775179839287,-150.99,0.00014504,2]
[419327693,1775179839296,-7606.6,0.00014504,2]
[419327694,1775179839305,-70168.972518,0.00014504,2]
[419327697,1775179840760,-626.261453,0.00011601,2]
[419327699,1775179840771,-4769.30130707,0.00014504,2]
[419327701,1775179841169,-35733.39617493,0.00014504,2]
[419327703,1775179841180,-1600.0,0.00014578,2]
[419327705,1775179841190,-516.17,0.00014578,2]
[419327707,1775179841200,-2351.0,0.00014621,2]
[419327709,1775179841210,-1995.20112834,0.00014636,2]
[419327711,1775179841219,-255.0,0.00014668,2]
[419327713,1775179841229,-1995.20112834,0.00014794,2]
[419327715,1775179841239,-200.0,0.00014845,2]
[419327717,1775179841249,-1491.30447232,0.00014845,2]
[419327719,1775179841260,-516.17,0.00014852,2]
[419327721,1775179841270,-200.0,0.00014897,2]
[419327723,1775179841280,-200.0,0.00014897,2]
[419327725,1775179841289,-1995.20112834,0.00014952,2]
[419327727,1775179841299,-1995.20112834,0.0001511,2]
[419327729,1775179841310,-516.1784478,0.00015126,2]
[419327731,1775179841321,-1995.20112834,0.00015268,2]
[419327733,1775179841331,-225.42759078,0.00015373,2]
[419327735,1775179841341,-200.0,0.00015393,2]
[419327737,1775179841350,-1546.48273779,0.00015393,2]
[419327740,1775179841360,-1995.20112834,0.00015426,2]
[419327743,1775179841370,-359.0,0.00015426,2]
[419327746,1775179841380,-1400.0,0.000155,5]
[419327748,1775179841391,-217.1612,0.000155,12]
[419327750,1775179841400,-398.58,0.00015507,2]
[419327752,1775179841410,-1346.0,0.0001558,2]
[419327754,1775179841419,-1995.20112834,0.00015584,2]
[419327756,1775179841429,-1117.48423029,0.000156,5]
[419327759,1775179841441,-782.51576971,0.000156,5]
[419327761,1775179841451,-2000.0,0.00015618,2]
[419327763,1775179841460,-2300.0,0.000157,5]
[419327765,1775179841470,-1995.20112834,0.00015742,2]
[419327767,1775179841480,-1000.0,0.00015747,2]
[419327769,1775179841490,-1000.0,0.00015751,2]
[419327771,1775179841500,-1000.0,0.00015779,2]
[419327773,1775179841510,-173.55164583,0.00015785,2]
[419327775,1775179841520,-181.11469831,0.00015785,2]
[419327777,1775179841529,-400.0,0.000158,5]
[419327779,1775179841539,-1263.0,0.00015805,2]
[419327781,1775179841549,-925.0,0.00015805,2]
[419327783,1775179841559,-1217.0,0.00015805,2]
[419327785,1775179841569,-1048.289,0.00015805,2]
[419327787,1775179841578,-3536.861,0.00015805,2]
[419327789,1775179841588,-1000.0,0.00015829,2]
[419327791,1775179841598,-159.0,0.0001586,5]
[419327793,1775179841607,-200.0,0.00015867,2]
[419327795,1775179841617,-17016.2619477,0.00015868,2]
[419327797,1775179841627,-70424.34687492,0.00015868,2]
[419327800,1775179841640,-1029.67326749,0.00015868,2]
[419327802,1775179841652,-2565.98624479,0.00015868,2]
[419327815,1775179841777,-837.11763089,0.00015868,2]
[419327818,1775179841789,-3114.16252253,0.00015868,2]
[419327820,1775179841801,-446.74544564,0.00015868,2]
[419327883,1775179842979,-4998.05375964,0.00015868,2]
[419327884,1775179842991,-670.98140393,0.00015868,2]
[419327886,1775179843157,-91446.85913477,0.00015868,2]
[419327887,1775179843167,-2499.5135366,0.00015868,2]
[419327888,1775179843177,-3633.9530553,0.00015868,2]
[419327889,1775179843188,-10530.9500124,0.00015868,2]
[419327890,1775179843199,-151.0,0.00015868,2]
[419327891,1775179843209,-906.9027434,0.00015868,2]
[419327892,1775179843219,-433.0,0.00015874,2]
[419327893,1775179843229,-195.00049181,0.0001589,2]
[419327894,1775179843239,-500.0,0.0001589,2]
[419327895,1775179843250,-167.0,0.0001589,3]
[419327896,1775179843260,-159.0,0.0001589,3]
[419327897,1775179843270,-398.58,0.00015895,2]
[419327898,1775179843280,-502.0,0.00015898,4]
[419327899,1775179843290,-4785.0,0.00015899,2]
[419327900,1775179843300,-204.78758883,0.000159,2]
[419327901,1775179843310,-292.29435131,0.000159,2]
[419327902,1775179843320,-311.47201686,0.000159,2]
[419327903,1775179843330,-4932.0313965,0.000159,2]
[419327904,1775179843340,-400.0,0.000159,5]
[419327905,1775179843351,-256.87890906,0.000159,2]
[419327906,1775179843361,-1995.20112834,0.000159,2]
[419327907,1775179843371,-207.92254638,0.000159,2]
[419327908,1775179843382,-4785.0,0.00015922,2]
[419327909,1775179843392,-200.0,0.00015941,2]
[419327910,1775179843402,-1203.26962546,0.00015941,2]
[419327911,1775179843412,-772.83085171,0.00015941,2]
[419327912,1775179843422,-194.0,0.00015973,2]
[419327913,1775179843432,-1000.0,0.00015978,2]
[419327914,1775179843442,-151.0,0.0001599,2]
[419327915,1775179843453,-155.0,0.00015999,2]
[419327916,1775179843462,-155.341,0.00015999,2]
[419327917,1775179843473,-500.0,0.00015999,2]
[419327918,1775179843483,-500.0,0.00015999,2]
[419327919,1775179843493,-456.41962083,0.00015999,2]
[419327920,1775179843503,-408.75871592,0.00015999,2]
[419327921,1775179843513,-500.0,0.00015999,2]
[419327922,1775179843523,-265.10361617,0.00015999,2]
[419327923,1775179843533,-500.0,0.00015999,2]
[419327924,1775179843543,-500.0,0.00015999,2]
[419327925,1775179843553,-643.04709195,0.00015999,2]
[419327926,1775179843563,-643.04709195,0.00015999,2]
[419327927,1775179843573,-643.04709195,0.00015999,2]
[419327928,1775179843583,-643.04709195,0.00015999,2]
[419327929,1775179843593,-643.04709195,0.00015999,2]
[419327930,1775179843603,-643.04709195,0.00015999,2]
[419327931,1775179843613,-643.04709195,0.00015999,2]
[419327932,1775179843623,-643.04709195,0.00015999,2]
[419327933,1775179843634,-643.04709195,0.00015999,2]
[419327934,1775179843644,-643.04709195,0.00015999,2]
[419327935,1775179843654,-643.04709195,0.00015999,2]
[419327936,1775179843664,-643.04709195,0.00015999,2]
[419327937,1775179843674,-643.04709195,0.00015999,2]
[419327938,1775179843684,-643.04709195,0.00015999,2]
[419327939,1775179843693,-643.04709195,0.00015999,2]
[419327940,1775179843703,-643.04709195,0.00015999,2]
[419327941,1775179843713,-643.04709195,0.00015999,2]
[419327942,1775179843723,-643.04709195,0.00015999,2]
[419327943,1775179843733,-643.04709195,0.00015999,2]
[419327944,1775179843742,-643.04709195,0.00015999,2]
[419327945,1775179843753,-643.04709195,0.00015999,2]
[419327946,1775179843762,-643.04709195,0.00015999,2]
[419327947,1775179843772,-643.04709195,0.00015999,2]
[419327948,1775179843782,-643.04709195,0.00015999,2]
[419327949,1775179843791,-643.04709195,0.00015999,2]
[419327950,1775179843801,-643.04709195,0.00015999,2]
[419327951,1775179843811,-643.04709195,0.00015999,2]
[419327952,1775179843820,-643.04709195,0.00015999,2]
[419327953,1775179843830,-643.04709195,0.00015999,2]
[419327955,1775179843839,-643.04709195,0.00015999,2]
[419327957,1775179843849,-643.04709195,0.00015999,2]
[419327958,1775179843859,-643.04709195,0.00015999,2]
[419327960,1775179843868,-643.04709195,0.00015999,2]
[419327961,1775179843878,-643.04709195,0.00015999,2]
[419327962,1775179843888,-643.04709195,0.00015999,2]
[419327963,1775179843897,-643.04709195,0.00015999,2]
[419327964,1775179843907,-643.04709195,0.00015999,2]
[419327965,1775179843918,-643.04709195,0.00015999,2]
[419327966,1775179843928,-643.04709195,0.00015999,2]
[419327967,1775179843938,-643.04709195,0.00015999,2]
[419327968,1775179843948,-643.04709195,0.00015999,2]
[419327969,1775179843957,-643.04709195,0.00015999,2]
[419327970,1775179843967,-643.04709195,0.00015999,2]
[419327971,1775179843977,-643.04709195,0.00015999,2]
[419327972,1775179843987,-643.04709195,0.00015999,2]